{"text_format":"2","workbook":"xlsx","n_sheets":1,"sheets":["Munka1"],"not_rendered":{"charts":0,"images":0,"macros":0,"external_links":0,"defined_names":0,"comments":0,"pivot_tables":0},"unopened":[],"bounds":{"document_bytes":16777216,"sheet_cells":100000,"run_cost":"one","rows_first":2000,"rows_last":500,"rows_between":2000,"halvings":0,"cell_chars":16384,"cell_head_chars":4096},"cells_cut":0,"cells_raw":0,"read":"whole","date_system":"1900"}

{"sheet":"Munka1","index":0,"n_rows":48,"n_cols":8,"rows_kept":48,"cut":false,"hidden":false,"merged":[[3,6,3,7],[7,0,7,1],[8,0,8,1],[4,6,4,7],[5,6,5,7],[6,6,6,7],[7,6,7,7],[0,0,0,1],[5,0,5,1],[4,0,4,1],[3,0,3,1],[2,0,2,1]]}
["SZEGEDI TUDOMÁNYEGYETEM"]
[]
["Szegedi Tudományegyetem                ",{"$nulls":5},"Kelt:"]
["Műszaki Igazgatóság                    ",{"$nulls":5},"Készítette:"]
["Műszaki Üzemeltetési Részleg         ",{"$nulls":5},"Cégnév"]
["6725 Szeged, Tisza Lajos krt. 107.     ",{"$nulls":5},"Székhely"]
[{"$nulls":6},"Kapcsolattartó"]
["A munka tárgya:                       ",{"$nulls":5},"Elérhetőség"]
["SZTE SZAKK, Nyugati telephely, „C” épület villamos betápláló rendszerének bővítése, tervezéssel és komplett kivitelezéssel"]
[]
["Sorsz.","Megnevezés:","Menny.","Menny. egys:","Anyag egységár:","Díj egységár:","Anyag össsz:","Díj össz:"]
[1,"Munkaárok földkiemelése közművesített területen, kézi erővel, bármely konzisztenciájú talajban, dúcolás nélkül, 2,0 m² szelvényig, IV. talajosztály",63,"m3",0,0,{"$f":"C12*E12","v":0},{"$f":"C12*F12","v":0}]
[2,"Közmű feltárása kézi erővel, talajosztály: IV.",5,"m3",0,0,{"$f":"C13*E13","v":0},{"$f":"C13*F13","v":0}]
[3,"Munkaárok elkerítése védőkorláttal ",80,"fm",0,0,{"$f":"C14*E14","v":0},{"$f":"C14*F14","v":0}]
[4,"Földvisszatöltés munkagödörbe vagy munkaárokba, tömörítés nélkül, réteges elterítéssel, I-IV. osztályú talajban, kézi erővel, az anyag súlypontja karoláson belül, a vezeték (műtárgy) felett és mellett 50 cm vastagságig",42,"m3",0,0,0,0]
[5,"Útátvágás helyreállítása szakaszosan, 10 mm vastagságú kazánlemez ideiglenes borítással.",6,"m2",0,0,{"$f":"C16*E16","v":0},{"$f":"C16*F16","v":0}]
[6,"Földvisszatöltés munkagödörbe vagy munkaárokba, 96% tömörítéssel, réteges elterítéssel, I-IV. osztályú talajban, kézi erővel, az anyag súlypontja karoláson belül, a vezetéket (műtárgyat) környező 50 cm-en túli szelvényben",21,"m3",0,0,0,0]
[7,"Épületalaplap faláttörés 40x20 cm-es",1,"db",0,0,0,0]
[8,"40x40x150cm-es kábelakna létesítése 5mm vastag kazánlemez fedéssel(1,5 m2 területen).",1,"db",0,0,0,0]
[9,"Építési törmelék konténeres elszállítása, lerakása, lerakóhelyi díjjal, 10,0 m³-es konténerbe",2,"db",0,0,0,0]
[10,"KPE 110mm 10bar nyomócső (kábelvédőcső) szerelése földárokban, aszfaltút alatt. ",30,"fm",0,0,0,0]
[11,"Útalapbeton, valamint hidraulikus kötőanyaggal vagy bitumennel stabilizált rétegek bontása, kézi erővel, légkalapáccsal, 4 m²-nél kisebb foltokban",7,"m3",0,0,0,0]
[12,"Fő- és mellékutak bitumenes burkolatának készítése, hengerelt aszfalt alapréteg készítése (AC), a meglévő alap felületének előzetes letakarításával, bitumenemulziós alápermetezéssel, 4 méter szélességig, AC 22 alap, aszfaltkeverékből, 70-120 mm vastagságban terítve, Alapréteg AC22 alap (N) 35/50, AC22 alap (N) 50/70 típusú bitumennel, N igénybevételi kat. alapréteg zúzott kővel, homokos kaviccsal, homokkal",4,"m3",0,0,0,0]
[13,"Műanyag szigetelésű energiaátviteli ésirányítás-technikai kábel fektetésekézi erővel, kábelárokba vagy kábelcsatornába, keresztező akadályok alatt, tömeghatár: 2,51-5,00 kg/m, SZAMKAM 0,6/1 kV alumínium kábel, 4x240 mm² tc",280,"fm",0,0,0,0]
[14,"Kábelárokban homokágy készítése 10 cm vastagságban, 0,41-0,60 m árokszélességig",140,"fm",0,0,0,0]
[15,"Kábeljelző szalag elhelyezése, Műanyag kábeljelölő szalag, 150x0.2 mm",1.6,"100 fm",0,0,0,0]
[16,"Műanyag szigetelésű energiaátviteli és irányítástechnikai kábel védőcsőbe húzása vagy bújtatható kábel-tömbcsatornába fektetése, 2-15 m hosszú csőbe vagy csatornába, tömeghatár: 2,51-5,00 kg/m",8,"db",0,0,0,0]
[17,"Műanyag szigetelésű energiaátviteli kábel belsőtéri kábelvégkiképzése, hőre zsugorodó végelzáróval, keresztmetszet: 4x95-240 mm², Raychem EPKT 0185 beltéri végelzáró 4x95-240 mm²",4,"db",0,0,0,0]
[18,"Vezeték összekötése és bekötése készülékbe, kábelsaru nélkül, 3-4 vezetékszál esetén",16,"db",0,0,0,0]
[19,"EBG kültéri kábelelosztószekrény  UCHISD 0, szerelőlappal, sinezéssel, 4db LA-ASB-400-(400A NH2), 1db LA-ASB-160A biztosító szakaszolóval,SKSr 0 lábazattal, 52l lábazati kitőltőanyaggal feltőltve, szükséges védelem kialakításával, készreszereléssel, telepítéssel",1,"klt.",0,0,0,0]
[20,"MKH 240mm2 vezeték (fekete) 5fm/db mindkét végén présel saruztással, bekötéssel.",3,"db",0,0,{"$f":"C31*E31","v":0},{"$f":"C31*F31","v":0}]
[21,"MKH 240mm2 vezeték (kék / PE) 5fm/db mindkét végén présel saruztással, bekötéssel.",1,"db",0,0,0,0]
[22,"NH2 biztosítós szakaszoló aljzat 400A, M10 csavar, 240mm2, beépítéssel, kompletten Telephelyi főelosztóba.",2,"db",0,0,{"$f":"C33*E33","v":0},{"$f":"C33*F33","v":0}]
[23,"MKH 150mm2 3m vezeték (fekete), sarus vezetékvég kiképzéssel, síncsatlakozás kialakítással, bekötéssel..",6,"db",0,0,0,0]
[24,"Fali IP54-es maszkolható (kb 800X600X300mm) fém vagy műanyag elosztószekrény, 1db 250A-es szakaszoló főkapcsolóval, és 6 db  3 pólusú, DO2/63A biztosítós kapcsolóval, N, PE  sorolóval, belső kialakítással, kábelbevezető tömszelencékkel, feliratozásokkal, CE minősítésssel kompletten.",1,"db",0,0,0,0]
[25,"NAYY-J 5x150mm2   kábel 15 m, oldalfalra, tartószerkezekre (bilincsekre) rögzítve,  kettő végén kábelvégkiképzéssel, bekötéssel kompletten.",1,"klt.",0,0,{"$f":"C36*E36","v":0},{"$f":"C36*F36","v":0}]
[26,"Lehetséges nyomvonalak előzetes felülvizsgálata kábelkereső műszerrel.",1,"klt.",0,0,0,0]
[27,"Feszültségmentesítés",1,"alk.",0,0,0,0]
[28,"Feszültség alá helyezés",1,"klt.",0,0,0,0]
[29,"MOBIL Aggregátoros energia-ellátás biztosítása  főelosztóra történő rácsatlakozás időtartamára kb kb 40kVA.",1,"klt.",0,0,0,0]
[30,"Szakfelügyelet biztosítása az üzemelő energiahálózatra kötési munkálatok alatt.",1,"alk.",0,0,{"$f":"C41*E41","v":0},0]
[31,"VBF, és Kábelszigetelés vizsgálati jegyzőkönyv",1,"klt.",0,0,0,0]
[32,"Nyomvonal, és csatlakozási terv készítése (3 nyomtatott +1 elektronikus pld.)",1,"klt.",0,0,0,0]
[33,"Átadási D terv dokumentáció (3 nyomtatott +1 elektronikus pld.)",1,"klt.",0,0,0,0]
[null,"Díj összesen:",{"$nulls":4},{"$f":"SUM(G12:G44)","v":0},{"$f":"SUM(H12:H44)","v":0}]
[null,"Nettó Anyag + Díj összesen:",{"$nulls":5},{"$f":"G45+H45","v":0}]
[null,"ÁFA",{"$nulls":5},{"$f":"H46*0.27","v":0}]
[null,"Bruttó Vállalkozási ár:",{"$nulls":5},{"$f":"H46+H47","v":0}]